{"text_format":"1","workbook":"xlsx","n_sheets":15,"sheets":["ورقة1","يناير","فبراير","مارس","ابريل","مايو","يونيو","يوليو","أغسطس","سبتمبر","أكتوبر","نوفمبر","ديسمبر","Pattern","f"],"not_rendered":{"charts":0,"images":1,"macros":1,"external_links":0,"defined_names":19,"comments":1,"pivot_tables":0},"unopened":[],"bounds":{"document_bytes":16777216,"sheet_cells":100000,"rows_first":2000,"rows_last":500,"rows_between":2000,"halvings":0,"cell_chars":16384,"cell_head_chars":4096},"cells_cut":0,"cells_raw":0,"read":"whole","date_system":"1900"}

{"sheet":"ورقة1","index":0,"n_rows":1,"n_cols":20,"rows_kept":1,"cut":false,"hidden":false,"merged":[]}
["كود المنتج","إسم المنتج",null,null,"كود العميل","إسم العميل","المفوض","رقم الهاتف","الموقع","رصيد أول","إجمالي صادر","إجمالي وارد","رصيد آخر",null,null,null,null,"المفوض",null,"المواقع"]

{"sheet":"يناير","index":1,"n_rows":77,"n_cols":16,"rows_kept":77,"cut":false,"hidden":false,"merged":[[76,4,76,5],[48,2,48,5],[49,2,49,5],[50,2,50,3],[50,4,50,5],[70,4,70,5],[72,2,72,3],[31,4,31,5],[33,2,33,3],[37,4,37,5],[39,0,39,1],[39,4,39,5],[47,0,47,1],[0,0,0,1],[0,4,0,5],[8,0,8,1],[9,2,9,5],[10,2,10,5],[11,2,11,3],[11,4,11,5]]}
[null,null,null,null,null,null,null,"انشاء فاتورة جديدة",null,"رقم البوليصة","تاريخ البوليصة","اسم الشركة","إجمالي البالتات","مالك السيارة","اسم السائق","رقم السيارة"]
[null,null,null,null,null,null,null,null,null,1,{"$f":"$F$4","v":"00:00:00"},{"$f":"$B$10","v":""},{"$f":"$F$33","v":0},{"$f":"$F$34","v":0},{"$f":"$F$35","v":0},{"$f":"$F$36","v":0}]
[null,null,null,null,null,null,null,null,null,2,{"$f":"$F$43","v":"00:00:00"},{"$f":"$B$49","v":""},{"$f":"$F$72","v":0},{"$f":"$F$73","v":0},{"$f":"$F$74","v":0},{"$f":"$F$75","v":0}]
[null,null,null,null,"التاريخ"]
[null,null,null,null,"رقم البوليصة",1]
[null,null,null,null,"رقم أمر التوريد"]
[null,null,null,null,"كود العميل"]
[]
["بيانات العميل"]
["شـركـة /",{"$f":"IF(F7>0,VLOOKUP(F7,cli,2,0),\"\")","v":""},"الرجاء إعادة البالتات الفارغة من الموقع"]
["الموقع /",{"$f":"IF(F7>0,VLOOKUP(F7,data,5,0),\"\")","v":""},"عدم إستكمال بيانات إستلام السائق من العميل يعنى عدم وجود بالتات مرتجع"]
["رقم الهاتف/",{"$f":"IF(F7>0,VLOOKUP(F7,data,4,0),\"\")","v":""},"إستلام السائق من العميل",null,"إستلام مخازن الشركة"]
[null,null,"عدد البالتات المرتجع","توقيع السائق","عدد البالتات المرتجع","توقيع المخازن"]
[]
[]
["كود المنتج","اسم المنتج","عدد البالتات","محتوى البالتة","إجمالي الكمية","ملاحظات &\n تاريخ الإنتاج"]
[null,{"$f":"IF(A17>0,VLOOKUP(A17,or,2,0),\"\")","v":""},null,null,{"$f":"C17*D17","v":0}]
[null,"",null,null,{"$f":"C18*D18","v":0}]
[null,"",null,null,0]
[null,"",null,null,0]
[null,"",null,null,0]
[null,"",null,null,0]
[null,"",null,null,0]
[null,"",null,null,0]
[null,"",null,null,0]
[null,"",null,null,0]
[null,"",null,null,0]
[null,"",null,null,0]
[null,"",null,null,0]
["إستلمت أنا الموقع أدناه البضاعة الموضحة أعلاه في عهدتى بصفة أمانة بحالة جيدة وأتعهد بتسليمها إلى جهة الوصول بحالتها "]
["وأقر تضامنى مع مالك السيارة  لتحمل أي مسئولية تقع على البضاعة من عجز أو تلف أو فقدان أو حوادث أو تأخير في تسليم"]
[" البضاعة المشحونة بالسيارة قيادتى مسئولية تامة وتوقيعى على هذا إقرار منى بذلك.",null,null,null,"إجمالي عدد البالتات المستلمة"]
[null,null,null,null,"خشب بلدى",{"$f":"SUM(C17:C29)","v":0}]
["إدارة المخازن","الأمن\nتم مراجعة الكميات والأصناف المنصرفة","إدارة الجودة",null,"مالك السيارة"]
[null,"          الإسم :","الإسم :",null,"إسم السائق"]
["التوقيع :","         التوقيع :","التوقيع :",null,"رقم السيارة"]
[null,"خاص بالعميل",null,null,"توقيع السائق"]
[null,"توقيع المستلم /",null,null,"يــعــتــمــد ،،،"]
[]
[]
[]
[]
[null,null,null,null,"التاريخ"]
[null,null,null,null,"رقم البوليصة",2]
[null,null,null,null,"رقم أمر التوريد"]
[null,null,null,null,"كود العميل"]
[]
["بيانات العميل"]
["شـركـة /",{"$f":"IF(F46>0,VLOOKUP(F46,cli,2,0),\"\")","v":""},"الرجاء إعادة البالتات الفارغة من الموقع"]
["الموقع /",{"$f":"IF(F46>0,VLOOKUP(F46,data,5,0),\"\")","v":""},"عدم إستكمال بيانات إستلام السائق من العميل يعنى عدم وجود بالتات مرتجع"]
["رقم الهاتف/",{"$f":"IF(F46>0,VLOOKUP(F46,data,4,0),\"\")","v":""},"إستلام السائق من العميل",null,"إستلام مخازن الشركة"]
[null,null,"عدد البالتات المرتجع","توقيع السائق","عدد البالتات المرتجع","توقيع المخازن"]
[]
[]
["كود المنتج","اسم المنتج","عدد البالتات","محتوى البالتة","إجمالي الكمية","ملاحظات &\n تاريخ الإنتاج"]
[null,{"$f":"IF(A56>0,VLOOKUP(A56,or,2,0),\"\")","v":""},null,null,{"$f":"C56*D56","v":0}]
[null,"",null,null,{"$f":"C57*D57","v":0}]
[null,"",null,null,0]
[null,"",null,null,0]
[null,"",null,null,0]
[null,"",null,null,0]
[null,"",null,null,0]
[null,"",null,null,0]
[null,"",null,null,0]
[null,"",null,null,0]
[null,"",null,null,0]
[null,"",null,null,0]
[null,"",null,null,0]
["إستلمت أنا الموقع أدناه البضاعة الموضحة أعلاه في عهدتى بصفة أمانة بحالة جيدة وأتعهد بتسليمها إلى جهة الوصول بحالتها "]
["وأقر تضامنى مع مالك السيارة  لتحمل أي مسئولية تقع على البضاعة من عجز أو تلف أو فقدان أو حوادث أو تأخير في تسليم"]
[" البضاعة المشحونة بالسيارة قيادتى مسئولية تامة وتوقيعى على هذا إقرار منى بذلك.",null,null,null,"إجمالي عدد البالتات المستلمة"]
[null,null,null,null,"خشب بلدى",{"$f":"SUM(C56:C68)","v":0}]
["إدارة المخازن","الأمن\nتم مراجعة الكميات والأصناف المنصرفة","إدارة الجودة",null,"مالك السيارة"]
[null,"          الإسم :","الإسم :",null,"إسم السائق"]
["التوقيع :","         التوقيع :","التوقيع :",null,"رقم السيارة"]
[null,"خاص بالعميل",null,null,"توقيع السائق"]
[null,"توقيع المستلم /",null,null,"يــعــتــمــد ،،،"]

{"sheet":"فبراير","index":2,"n_rows":38,"n_cols":16,"rows_kept":38,"cut":false,"hidden":false,"merged":[[31,4,31,5],[33,2,33,3],[37,4,37,5],[0,0,0,1],[0,4,0,5],[8,0,8,1],[9,2,9,5],[10,2,10,5],[11,2,11,3],[11,4,11,5]]}
[null,null,null,null,null,null,null,"انشاء فاتورة جديدة",null,"رقم البوليصة","تاريخ البوليصة","اسم الشركة","إجمالي البالتات","مالك السيارة","اسم السائق","رقم السيارة"]
[]
[]
[null,null,null,null,"التاريخ"]
[null,null,null,null,"رقم البوليصة",1]
[null,null,null,null,"رقم أمر التوريد"]
[null,null,null,null,"كود العميل"]
[]
["بيانات العميل"]
["شـركـة /",{"$f":"IF(F7>0,VLOOKUP(F7,cli,2,0),\"\")","v":""},"الرجاء إعادة البالتات الفارغة من الموقع"]
["الموقع /",{"$f":"IF(F7>0,VLOOKUP(F7,data,5,0),\"\")","v":""},"عدم إستكمال بيانات إستلام السائق من العميل يعنى عدم وجود بالتات مرتجع"]
["رقم الهاتف/",{"$f":"IF(F7>0,VLOOKUP(F7,data,4,0),\"\")","v":""},"إستلام السائق من العميل",null,"إستلام مخازن الشركة"]
[null,null,"عدد البالتات المرتجع","توقيع السائق","عدد البالتات المرتجع","توقيع المخازن"]
[]
[]
["كود المنتج","اسم المنتج","عدد البالتات","محتوى البالتة","إجمالي الكمية","ملاحظات &\n تاريخ الإنتاج"]
[null,{"$f":"IF(A17>0,VLOOKUP(A17,or,2,0),\"\")","v":""},null,null,{"$f":"C17*D17","v":0}]
[null,"",null,null,{"$f":"C18*D18","v":0}]
[null,"",null,null,0]
[null,"",null,null,0]
[null,"",null,null,0]
[null,"",null,null,0]
[null,"",null,null,0]
[null,"",null,null,0]
[null,"",null,null,0]
[null,"",null,null,0]
[null,"",null,null,0]
[null,"",null,null,0]
[null,"",null,null,0]
["إستلمت أنا الموقع أدناه البضاعة الموضحة أعلاه في عهدتى بصفة أمانة بحالة جيدة وأتعهد بتسليمها إلى جهة الوصول بحالتها "]
["وأقر تضامنى مع مالك السيارة  لتحمل أي مسئولية تقع على البضاعة من عجز أو تلف أو فقدان أو حوادث أو تأخير في تسليم"]
[" البضاعة المشحونة بالسيارة قيادتى مسئولية تامة وتوقيعى على هذا إقرار منى بذلك.",null,null,null,"إجمالي عدد البالتات المستلمة"]
[null,null,null,null,"خشب بلدى",{"$f":"SUM(C17:C29)","v":0}]
["إدارة المخازن","الأمن\nتم مراجعة الكميات والأصناف المنصرفة","إدارة الجودة",null,"مالك السيارة"]
[null,"          الإسم :","الإسم :",null,"إسم السائق"]
["التوقيع :","         التوقيع :","التوقيع :",null,"رقم السيارة"]
[null,"خاص بالعميل",null,null,"توقيع السائق"]
[null,"توقيع المستلم /",null,null,"يــعــتــمــد ،،،"]

{"sheet":"مارس","index":3,"n_rows":38,"n_cols":16,"rows_kept":38,"cut":false,"hidden":false,"merged":[[31,4,31,5],[33,2,33,3],[37,4,37,5],[0,0,0,1],[0,4,0,5],[8,0,8,1],[9,2,9,5],[10,2,10,5],[11,2,11,3],[11,4,11,5]]}
[null,null,null,null,null,null,null,"انشاء فاتورة جديدة",null,"رقم البوليصة","تاريخ البوليصة","اسم الشركة","إجمالي البالتات","مالك السيارة","اسم السائق","رقم السيارة"]
[]
[]
[null,null,null,null,"التاريخ"]
[null,null,null,null,"رقم البوليصة",1]
[null,null,null,null,"رقم أمر التوريد"]
[null,null,null,null,"كود العميل"]
[]
["بيانات العميل"]
["شـركـة /",{"$f":"IF(F7>0,VLOOKUP(F7,cli,2,0),\"\")","v":""},"الرجاء إعادة البالتات الفارغة من الموقع"]
["الموقع /",{"$f":"IF(F7>0,VLOOKUP(F7,data,5,0),\"\")","v":""},"عدم إستكمال بيانات إستلام السائق من العميل يعنى عدم وجود بالتات مرتجع"]
["رقم الهاتف/",{"$f":"IF(F7>0,VLOOKUP(F7,data,4,0),\"\")","v":""},"إستلام السائق من العميل",null,"إستلام مخازن الشركة"]
[null,null,"عدد البالتات المرتجع","توقيع السائق","عدد البالتات المرتجع","توقيع المخازن"]
[]
[]
["كود المنتج","اسم المنتج","عدد البالتات","محتوى البالتة","إجمالي الكمية","ملاحظات &\n تاريخ الإنتاج"]
[null,{"$f":"IF(A17>0,VLOOKUP(A17,or,2,0),\"\")","v":""},null,null,{"$f":"C17*D17","v":0}]
[null,"",null,null,{"$f":"C18*D18","v":0}]
[null,"",null,null,0]
[null,"",null,null,0]
[null,"",null,null,0]
[null,"",null,null,0]
[null,"",null,null,0]
[null,"",null,null,0]
[null,"",null,null,0]
[null,"",null,null,0]
[null,"",null,null,0]
[null,"",null,null,0]
[null,"",null,null,0]
["إستلمت أنا الموقع أدناه البضاعة الموضحة أعلاه في عهدتى بصفة أمانة بحالة جيدة وأتعهد بتسليمها إلى جهة الوصول بحالتها "]
["وأقر تضامنى مع مالك السيارة  لتحمل أي مسئولية تقع على البضاعة من عجز أو تلف أو فقدان أو حوادث أو تأخير في تسليم"]
[" البضاعة المشحونة بالسيارة قيادتى مسئولية تامة وتوقيعى على هذا إقرار منى بذلك.",null,null,null,"إجمالي عدد البالتات المستلمة"]
[null,null,null,null,"خشب بلدى",{"$f":"SUM(C17:C29)","v":0}]
["إدارة المخازن","الأمن\nتم مراجعة الكميات والأصناف المنصرفة","إدارة الجودة",null,"مالك السيارة"]
[null,"          الإسم :","الإسم :",null,"إسم السائق"]
["التوقيع :","         التوقيع :","التوقيع :",null,"رقم السيارة"]
[null,"خاص بالعميل",null,null,"توقيع السائق"]
[null,"توقيع المستلم /",null,null,"يــعــتــمــد ،،،"]

{"sheet":"ابريل","index":4,"n_rows":38,"n_cols":16,"rows_kept":38,"cut":false,"hidden":false,"merged":[[31,4,31,5],[33,2,33,3],[37,4,37,5],[0,0,0,1],[0,4,0,5],[8,0,8,1],[9,2,9,5],[10,2,10,5],[11,2,11,3],[11,4,11,5]]}
[null,null,null,null,null,null,null,"انشاء فاتورة جديدة",null,"رقم البوليصة","تاريخ البوليصة","اسم الشركة","إجمالي البالتات","مالك السيارة","اسم السائق","رقم السيارة"]
[]
[]
[null,null,null,null,"التاريخ"]
[null,null,null,null,"رقم البوليصة",1]
[null,null,null,null,"رقم أمر التوريد"]
[null,null,null,null,"كود العميل"]
[]
["بيانات العميل"]
["شـركـة /",{"$f":"IF(F7>0,VLOOKUP(F7,cli,2,0),\"\")","v":""},"الرجاء إعادة البالتات الفارغة من الموقع"]
["الموقع /",{"$f":"IF(F7>0,VLOOKUP(F7,data,5,0),\"\")","v":""},"عدم إستكمال بيانات إستلام السائق من العميل يعنى عدم وجود بالتات مرتجع"]
["رقم الهاتف/",{"$f":"IF(F7>0,VLOOKUP(F7,data,4,0),\"\")","v":""},"إستلام السائق من العميل",null,"إستلام مخازن الشركة"]
[null,null,"عدد البالتات المرتجع","توقيع السائق","عدد البالتات المرتجع","توقيع المخازن"]
[]
[]
["كود المنتج","اسم المنتج","عدد البالتات","محتوى البالتة","إجمالي الكمية","ملاحظات &\n تاريخ الإنتاج"]
[null,{"$f":"IF(A17>0,VLOOKUP(A17,or,2,0),\"\")","v":""},null,null,{"$f":"C17*D17","v":0}]
[null,"",null,null,{"$f":"C18*D18","v":0}]
[null,"",null,null,0]
[null,"",null,null,0]
[null,"",null,null,0]
[null,"",null,null,0]
[null,"",null,null,0]
[null,"",null,null,0]
[null,"",null,null,0]
[null,"",null,null,0]
[null,"",null,null,0]
[null,"",null,null,0]
[null,"",null,null,0]
["إستلمت أنا الموقع أدناه البضاعة الموضحة أعلاه في عهدتى بصفة أمانة بحالة جيدة وأتعهد بتسليمها إلى جهة الوصول بحالتها "]
["وأقر تضامنى مع مالك السيارة  لتحمل أي مسئولية تقع على البضاعة من عجز أو تلف أو فقدان أو حوادث أو تأخير في تسليم"]
[" البضاعة المشحونة بالسيارة قيادتى مسئولية تامة وتوقيعى على هذا إقرار منى بذلك.",null,null,null,"إجمالي عدد البالتات المستلمة"]
[null,null,null,null,"خشب بلدى",{"$f":"SUM(C17:C29)","v":0}]
["إدارة المخازن","الأمن\nتم مراجعة الكميات والأصناف المنصرفة","إدارة الجودة",null,"مالك السيارة"]
[null,"          الإسم :","الإسم :",null,"إسم السائق"]
["التوقيع :","         التوقيع :","التوقيع :",null,"رقم السيارة"]
[null,"خاص بالعميل",null,null,"توقيع السائق"]
[null,"توقيع المستلم /",null,null,"يــعــتــمــد ،،،"]

{"sheet":"مايو","index":5,"n_rows":38,"n_cols":16,"rows_kept":38,"cut":false,"hidden":false,"merged":[[31,4,31,5],[33,2,33,3],[37,4,37,5],[0,0,0,1],[0,4,0,5],[8,0,8,1],[9,2,9,5],[10,2,10,5],[11,2,11,3],[11,4,11,5]]}
[null,null,null,null,null,null,null,"انشاء فاتورة جديدة",null,"رقم البوليصة","تاريخ البوليصة","اسم الشركة","إجمالي البالتات","مالك السيارة","اسم السائق","رقم السيارة"]
[]
[]
[null,null,null,null,"التاريخ"]
[null,null,null,null,"رقم البوليصة",1]
[null,null,null,null,"رقم أمر التوريد"]
[null,null,null,null,"كود العميل"]
[]
["بيانات العميل"]
["شـركـة /",{"$f":"IF(F7>0,VLOOKUP(F7,cli,2,0),\"\")","v":""},"الرجاء إعادة البالتات الفارغة من الموقع"]
["الموقع /",{"$f":"IF(F7>0,VLOOKUP(F7,data,5,0),\"\")","v":""},"عدم إستكمال بيانات إستلام السائق من العميل يعنى عدم وجود بالتات مرتجع"]
["رقم الهاتف/",{"$f":"IF(F7>0,VLOOKUP(F7,data,4,0),\"\")","v":""},"إستلام السائق من العميل",null,"إستلام مخازن الشركة"]
[null,null,"عدد البالتات المرتجع","توقيع السائق","عدد البالتات المرتجع","توقيع المخازن"]
[]
[]
["كود المنتج","اسم المنتج","عدد البالتات","محتوى البالتة","إجمالي الكمية","ملاحظات &\n تاريخ الإنتاج"]
[null,{"$f":"IF(A17>0,VLOOKUP(A17,or,2,0),\"\")","v":""},null,null,{"$f":"C17*D17","v":0}]
[null,"",null,null,{"$f":"C18*D18","v":0}]
[null,"",null,null,0]
[null,"",null,null,0]
[null,"",null,null,0]
[null,"",null,null,0]
[null,"",null,null,0]
[null,"",null,null,0]
[null,"",null,null,0]
[null,"",null,null,0]
[null,"",null,null,0]
[null,"",null,null,0]
[null,"",null,null,0]
["إستلمت أنا الموقع أدناه البضاعة الموضحة أعلاه في عهدتى بصفة أمانة بحالة جيدة وأتعهد بتسليمها إلى جهة الوصول بحالتها "]
["وأقر تضامنى مع مالك السيارة  لتحمل أي مسئولية تقع على البضاعة من عجز أو تلف أو فقدان أو حوادث أو تأخير في تسليم"]
[" البضاعة المشحونة بالسيارة قيادتى مسئولية تامة وتوقيعى على هذا إقرار منى بذلك.",null,null,null,"إجمالي عدد البالتات المستلمة"]
[null,null,null,null,"خشب بلدى",{"$f":"SUM(C17:C29)","v":0}]
["إدارة المخازن","الأمن\nتم مراجعة الكميات والأصناف المنصرفة","إدارة الجودة",null,"مالك السيارة"]
[null,"          الإسم :","الإسم :",null,"إسم السائق"]
["التوقيع :","         التوقيع :","التوقيع :",null,"رقم السيارة"]
[null,"خاص بالعميل",null,null,"توقيع السائق"]
[null,"توقيع المستلم /",null,null,"يــعــتــمــد ،،،"]

{"sheet":"يونيو","index":6,"n_rows":38,"n_cols":16,"rows_kept":38,"cut":false,"hidden":false,"merged":[[31,4,31,5],[33,2,33,3],[37,4,37,5],[0,0,0,1],[0,4,0,5],[8,0,8,1],[9,2,9,5],[10,2,10,5],[11,2,11,3],[11,4,11,5]]}
[null,null,null,null,null,null,null,"انشاء فاتورة جديدة",null,"رقم البوليصة","تاريخ البوليصة","اسم الشركة","إجمالي البالتات","مالك السيارة","اسم السائق","رقم السيارة"]
[]
[]
[null,null,null,null,"التاريخ"]
[null,null,null,null,"رقم البوليصة",1]
[null,null,null,null,"رقم أمر التوريد"]
[null,null,null,null,"كود العميل"]
[]
["بيانات العميل"]
["شـركـة /",{"$f":"IF(F7>0,VLOOKUP(F7,cli,2,0),\"\")","v":""},"الرجاء إعادة البالتات الفارغة من الموقع"]
["الموقع /",{"$f":"IF(F7>0,VLOOKUP(F7,data,5,0),\"\")","v":""},"عدم إستكمال بيانات إستلام السائق من العميل يعنى عدم وجود بالتات مرتجع"]
["رقم الهاتف/",{"$f":"IF(F7>0,VLOOKUP(F7,data,4,0),\"\")","v":""},"إستلام السائق من العميل",null,"إستلام مخازن الشركة"]
[null,null,"عدد البالتات المرتجع","توقيع السائق","عدد البالتات المرتجع","توقيع المخازن"]
[]
[]
["كود المنتج","اسم المنتج","عدد البالتات","محتوى البالتة","إجمالي الكمية","ملاحظات &\n تاريخ الإنتاج"]
[null,{"$f":"IF(A17>0,VLOOKUP(A17,or,2,0),\"\")","v":""},null,null,{"$f":"C17*D17","v":0}]
[null,"",null,null,{"$f":"C18*D18","v":0}]
[null,"",null,null,0]
[null,"",null,null,0]
[null,"",null,null,0]
[null,"",null,null,0]
[null,"",null,null,0]
[null,"",null,null,0]
[null,"",null,null,0]
[null,"",null,null,0]
[null,"",null,null,0]
[null,"",null,null,0]
[null,"",null,null,0]
["إستلمت أنا الموقع أدناه البضاعة الموضحة أعلاه في عهدتى بصفة أمانة بحالة جيدة وأتعهد بتسليمها إلى جهة الوصول بحالتها "]
["وأقر تضامنى مع مالك السيارة  لتحمل أي مسئولية تقع على البضاعة من عجز أو تلف أو فقدان أو حوادث أو تأخير في تسليم"]
[" البضاعة المشحونة بالسيارة قيادتى مسئولية تامة وتوقيعى على هذا إقرار منى بذلك.",null,null,null,"إجمالي عدد البالتات المستلمة"]
[null,null,null,null,"خشب بلدى",{"$f":"SUM(C17:C29)","v":0}]
["إدارة المخازن","الأمن\nتم مراجعة الكميات والأصناف المنصرفة","إدارة الجودة",null,"مالك السيارة"]
[null,"          الإسم :","الإسم :",null,"إسم السائق"]
["التوقيع :","         التوقيع :","التوقيع :",null,"رقم السيارة"]
[null,"خاص بالعميل",null,null,"توقيع السائق"]
[null,"توقيع المستلم /",null,null,"يــعــتــمــد ،،،"]

{"sheet":"يوليو","index":7,"n_rows":38,"n_cols":16,"rows_kept":38,"cut":false,"hidden":false,"merged":[[31,4,31,5],[33,2,33,3],[37,4,37,5],[0,0,0,1],[0,4,0,5],[8,0,8,1],[9,2,9,5],[10,2,10,5],[11,2,11,3],[11,4,11,5]]}
[null,null,null,null,null,null,null,"انشاء فاتورة جديدة",null,"رقم البوليصة","تاريخ البوليصة","اسم الشركة","إجمالي البالتات","مالك السيارة","اسم السائق","رقم السيارة"]
[]
[]
[null,null,null,null,"التاريخ"]
[null,null,null,null,"رقم البوليصة",1]
[null,null,null,null,"رقم أمر التوريد"]
[null,null,null,null,"كود العميل"]
[]
["بيانات العميل"]
["شـركـة /",{"$f":"IF(F7>0,VLOOKUP(F7,cli,2,0),\"\")","v":""},"الرجاء إعادة البالتات الفارغة من الموقع"]
["الموقع /",{"$f":"IF(F7>0,VLOOKUP(F7,data,5,0),\"\")","v":""},"عدم إستكمال بيانات إستلام السائق من العميل يعنى عدم وجود بالتات مرتجع"]
["رقم الهاتف/",{"$f":"IF(F7>0,VLOOKUP(F7,data,4,0),\"\")","v":""},"إستلام السائق من العميل",null,"إستلام مخازن الشركة"]
[null,null,"عدد البالتات المرتجع","توقيع السائق","عدد البالتات المرتجع","توقيع المخازن"]
[]
[]
["كود المنتج","اسم المنتج","عدد البالتات","محتوى البالتة","إجمالي الكمية","ملاحظات &\n تاريخ الإنتاج"]
[null,{"$f":"IF(A17>0,VLOOKUP(A17,or,2,0),\"\")","v":""},null,null,{"$f":"C17*D17","v":0}]
[null,"",null,null,{"$f":"C18*D18","v":0}]
[null,"",null,null,0]
[null,"",null,null,0]
[null,"",null,null,0]
[null,"",null,null,0]
[null,"",null,null,0]
[null,"",null,null,0]
[null,"",null,null,0]
[null,"",null,null,0]
[null,"",null,null,0]
[null,"",null,null,0]
[null,"",null,null,0]
["إستلمت أنا الموقع أدناه البضاعة الموضحة أعلاه في عهدتى بصفة أمانة بحالة جيدة وأتعهد بتسليمها إلى جهة الوصول بحالتها "]
["وأقر تضامنى مع مالك السيارة  لتحمل أي مسئولية تقع على البضاعة من عجز أو تلف أو فقدان أو حوادث أو تأخير في تسليم"]
[" البضاعة المشحونة بالسيارة قيادتى مسئولية تامة وتوقيعى على هذا إقرار منى بذلك.",null,null,null,"إجمالي عدد البالتات المستلمة"]
[null,null,null,null,"خشب بلدى",{"$f":"SUM(C17:C29)","v":0}]
["إدارة المخازن","الأمن\nتم مراجعة الكميات والأصناف المنصرفة","إدارة الجودة",null,"مالك السيارة"]
[null,"          الإسم :","الإسم :",null,"إسم السائق"]
["التوقيع :","         التوقيع :","التوقيع :",null,"رقم السيارة"]
[null,"خاص بالعميل",null,null,"توقيع السائق"]
[null,"توقيع المستلم /",null,null,"يــعــتــمــد ،،،"]

{"sheet":"أغسطس","index":8,"n_rows":38,"n_cols":16,"rows_kept":38,"cut":false,"hidden":false,"merged":[[31,4,31,5],[33,2,33,3],[37,4,37,5],[0,0,0,1],[0,4,0,5],[8,0,8,1],[9,2,9,5],[10,2,10,5],[11,2,11,3],[11,4,11,5]]}
[null,null,null,null,null,null,null,"انشاء فاتورة جديدة",null,"رقم البوليصة","تاريخ البوليصة","اسم الشركة","إجمالي البالتات","مالك السيارة","اسم السائق","رقم السيارة"]
[]
[]
[null,null,null,null,"التاريخ"]
[null,null,null,null,"رقم البوليصة",1]
[null,null,null,null,"رقم أمر التوريد"]
[null,null,null,null,"كود العميل"]
[]
["بيانات العميل"]
["شـركـة /",{"$f":"IF(F7>0,VLOOKUP(F7,cli,2,0),\"\")","v":""},"الرجاء إعادة البالتات الفارغة من الموقع"]
["الموقع /",{"$f":"IF(F7>0,VLOOKUP(F7,data,5,0),\"\")","v":""},"عدم إستكمال بيانات إستلام السائق من العميل يعنى عدم وجود بالتات مرتجع"]
["رقم الهاتف/",{"$f":"IF(F7>0,VLOOKUP(F7,data,4,0),\"\")","v":""},"إستلام السائق من العميل",null,"إستلام مخازن الشركة"]
[null,null,"عدد البالتات المرتجع","توقيع السائق","عدد البالتات المرتجع","توقيع المخازن"]
[]
[]
["كود المنتج","اسم المنتج","عدد البالتات","محتوى البالتة","إجمالي الكمية","ملاحظات &\n تاريخ الإنتاج"]
[null,{"$f":"IF(A17>0,VLOOKUP(A17,or,2,0),\"\")","v":""},null,null,{"$f":"C17*D17","v":0}]
[null,"",null,null,{"$f":"C18*D18","v":0}]
[null,"",null,null,0]
[null,"",null,null,0]
[null,"",null,null,0]
[null,"",null,null,0]
[null,"",null,null,0]
[null,"",null,null,0]
[null,"",null,null,0]
[null,"",null,null,0]
[null,"",null,null,0]
[null,"",null,null,0]
[null,"",null,null,0]
["إستلمت أنا الموقع أدناه البضاعة الموضحة أعلاه في عهدتى بصفة أمانة بحالة جيدة وأتعهد بتسليمها إلى جهة الوصول بحالتها "]
["وأقر تضامنى مع مالك السيارة  لتحمل أي مسئولية تقع على البضاعة من عجز أو تلف أو فقدان أو حوادث أو تأخير في تسليم"]
[" البضاعة المشحونة بالسيارة قيادتى مسئولية تامة وتوقيعى على هذا إقرار منى بذلك.",null,null,null,"إجمالي عدد البالتات المستلمة"]
[null,null,null,null,"خشب بلدى",{"$f":"SUM(C17:C29)","v":0}]
["إدارة المخازن","الأمن\nتم مراجعة الكميات والأصناف المنصرفة","إدارة الجودة",null,"مالك السيارة"]
[null,"          الإسم :","الإسم :",null,"إسم السائق"]
["التوقيع :","         التوقيع :","التوقيع :",null,"رقم السيارة"]
[null,"خاص بالعميل",null,null,"توقيع السائق"]
[null,"توقيع المستلم /",null,null,"يــعــتــمــد ،،،"]

{"sheet":"سبتمبر","index":9,"n_rows":38,"n_cols":16,"rows_kept":38,"cut":false,"hidden":false,"merged":[[31,4,31,5],[33,2,33,3],[37,4,37,5],[0,0,0,1],[0,4,0,5],[8,0,8,1],[9,2,9,5],[10,2,10,5],[11,2,11,3],[11,4,11,5]]}
[null,null,null,null,null,null,null,"انشاء فاتورة جديدة",null,"رقم البوليصة","تاريخ البوليصة","اسم الشركة","إجمالي البالتات","مالك السيارة","اسم السائق","رقم السيارة"]
[]
[]
[null,null,null,null,"التاريخ"]
[null,null,null,null,"رقم البوليصة",1]
[null,null,null,null,"رقم أمر التوريد"]
[null,null,null,null,"كود العميل"]
[]
["بيانات العميل"]
["شـركـة /",{"$f":"IF(F7>0,VLOOKUP(F7,cli,2,0),\"\")","v":""},"الرجاء إعادة البالتات الفارغة من الموقع"]
["الموقع /",{"$f":"IF(F7>0,VLOOKUP(F7,data,5,0),\"\")","v":""},"عدم إستكمال بيانات إستلام السائق من العميل يعنى عدم وجود بالتات مرتجع"]
["رقم الهاتف/",{"$f":"IF(F7>0,VLOOKUP(F7,data,4,0),\"\")","v":""},"إستلام السائق من العميل",null,"إستلام مخازن الشركة"]
[null,null,"عدد البالتات المرتجع","توقيع السائق","عدد البالتات المرتجع","توقيع المخازن"]
[]
[]
["كود المنتج","اسم المنتج","عدد البالتات","محتوى البالتة","إجمالي الكمية","ملاحظات &\n تاريخ الإنتاج"]
[null,{"$f":"IF(A17>0,VLOOKUP(A17,or,2,0),\"\")","v":""},null,null,{"$f":"C17*D17","v":0}]
[null,"",null,null,{"$f":"C18*D18","v":0}]
[null,"",null,null,0]
[null,"",null,null,0]
[null,"",null,null,0]
[null,"",null,null,0]
[null,"",null,null,0]
[null,"",null,null,0]
[null,"",null,null,0]
[null,"",null,null,0]
[null,"",null,null,0]
[null,"",null,null,0]
[null,"",null,null,0]
["إستلمت أنا الموقع أدناه البضاعة الموضحة أعلاه في عهدتى بصفة أمانة بحالة جيدة وأتعهد بتسليمها إلى جهة الوصول بحالتها "]
["وأقر تضامنى مع مالك السيارة  لتحمل أي مسئولية تقع على البضاعة من عجز أو تلف أو فقدان أو حوادث أو تأخير في تسليم"]
[" البضاعة المشحونة بالسيارة قيادتى مسئولية تامة وتوقيعى على هذا إقرار منى بذلك.",null,null,null,"إجمالي عدد البالتات المستلمة"]
[null,null,null,null,"خشب بلدى",{"$f":"SUM(C17:C29)","v":0}]
["إدارة المخازن","الأمن\nتم مراجعة الكميات والأصناف المنصرفة","إدارة الجودة",null,"مالك السيارة"]
[null,"          الإسم :","الإسم :",null,"إسم السائق"]
["التوقيع :","         التوقيع :","التوقيع :",null,"رقم السيارة"]
[null,"خاص بالعميل",null,null,"توقيع السائق"]
[null,"توقيع المستلم /",null,null,"يــعــتــمــد ،،،"]

{"sheet":"أكتوبر","index":10,"n_rows":38,"n_cols":16,"rows_kept":38,"cut":false,"hidden":false,"merged":[[31,4,31,5],[33,2,33,3],[37,4,37,5],[0,0,0,1],[0,4,0,5],[8,0,8,1],[9,2,9,5],[10,2,10,5],[11,2,11,3],[11,4,11,5]]}
[null,null,null,null,null,null,null,"انشاء فاتورة جديدة",null,"رقم البوليصة","تاريخ البوليصة","اسم الشركة","إجمالي البالتات","مالك السيارة","اسم السائق","رقم السيارة"]
[]
[]
[null,null,null,null,"التاريخ"]
[null,null,null,null,"رقم البوليصة",1]
[null,null,null,null,"رقم أمر التوريد"]
[null,null,null,null,"كود العميل"]
[]
["بيانات العميل"]
["شـركـة /",{"$f":"IF(F7>0,VLOOKUP(F7,cli,2,0),\"\")","v":""},"الرجاء إعادة البالتات الفارغة من الموقع"]
["الموقع /",{"$f":"IF(F7>0,VLOOKUP(F7,data,5,0),\"\")","v":""},"عدم إستكمال بيانات إستلام السائق من العميل يعنى عدم وجود بالتات مرتجع"]
["رقم الهاتف/",{"$f":"IF(F7>0,VLOOKUP(F7,data,4,0),\"\")","v":""},"إستلام السائق من العميل",null,"إستلام مخازن الشركة"]
[null,null,"عدد البالتات المرتجع","توقيع السائق","عدد البالتات المرتجع","توقيع المخازن"]
[]
[]
["كود المنتج","اسم المنتج","عدد البالتات","محتوى البالتة","إجمالي الكمية","ملاحظات &\n تاريخ الإنتاج"]
[null,{"$f":"IF(A17>0,VLOOKUP(A17,or,2,0),\"\")","v":""},null,null,{"$f":"C17*D17","v":0}]
[null,"",null,null,{"$f":"C18*D18","v":0}]
[null,"",null,null,0]
[null,"",null,null,0]
[null,"",null,null,0]
[null,"",null,null,0]
[null,"",null,null,0]
[null,"",null,null,0]
[null,"",null,null,0]
[null,"",null,null,0]
[null,"",null,null,0]
[null,"",null,null,0]
[null,"",null,null,0]
["إستلمت أنا الموقع أدناه البضاعة الموضحة أعلاه في عهدتى بصفة أمانة بحالة جيدة وأتعهد بتسليمها إلى جهة الوصول بحالتها "]
["وأقر تضامنى مع مالك السيارة  لتحمل أي مسئولية تقع على البضاعة من عجز أو تلف أو فقدان أو حوادث أو تأخير في تسليم"]
[" البضاعة المشحونة بالسيارة قيادتى مسئولية تامة وتوقيعى على هذا إقرار منى بذلك.",null,null,null,"إجمالي عدد البالتات المستلمة"]
[null,null,null,null,"خشب بلدى",{"$f":"SUM(C17:C29)","v":0}]
["إدارة المخازن","الأمن\nتم مراجعة الكميات والأصناف المنصرفة","إدارة الجودة",null,"مالك السيارة"]
[null,"          الإسم :","الإسم :",null,"إسم السائق"]
["التوقيع :","         التوقيع :","التوقيع :",null,"رقم السيارة"]
[null,"خاص بالعميل",null,null,"توقيع السائق"]
[null,"توقيع المستلم /",null,null,"يــعــتــمــد ،،،"]

{"sheet":"نوفمبر","index":11,"n_rows":38,"n_cols":16,"rows_kept":38,"cut":false,"hidden":false,"merged":[[31,4,31,5],[33,2,33,3],[37,4,37,5],[0,0,0,1],[0,4,0,5],[8,0,8,1],[9,2,9,5],[10,2,10,5],[11,2,11,3],[11,4,11,5]]}
[null,null,null,null,null,null,null,"انشاء فاتورة جديدة",null,"رقم البوليصة","تاريخ البوليصة","اسم الشركة","إجمالي البالتات","مالك السيارة","اسم السائق","رقم السيارة"]
[]
[]
[null,null,null,null,"التاريخ"]
[null,null,null,null,"رقم البوليصة",1]
[null,null,null,null,"رقم أمر التوريد"]
[null,null,null,null,"كود العميل"]
[]
["بيانات العميل"]
["شـركـة /",{"$f":"IF(F7>0,VLOOKUP(F7,cli,2,0),\"\")","v":""},"الرجاء إعادة البالتات الفارغة من الموقع"]
["الموقع /",{"$f":"IF(F7>0,VLOOKUP(F7,data,5,0),\"\")","v":""},"عدم إستكمال بيانات إستلام السائق من العميل يعنى عدم وجود بالتات مرتجع"]
["رقم الهاتف/",{"$f":"IF(F7>0,VLOOKUP(F7,data,4,0),\"\")","v":""},"إستلام السائق من العميل",null,"إستلام مخازن الشركة"]
[null,null,"عدد البالتات المرتجع","توقيع السائق","عدد البالتات المرتجع","توقيع المخازن"]
[]
[]
["كود المنتج","اسم المنتج","عدد البالتات","محتوى البالتة","إجمالي الكمية","ملاحظات &\n تاريخ الإنتاج"]
[null,{"$f":"IF(A17>0,VLOOKUP(A17,or,2,0),\"\")","v":""},null,null,{"$f":"C17*D17","v":0}]
[null,"",null,null,{"$f":"C18*D18","v":0}]
[null,"",null,null,0]
[null,"",null,null,0]
[null,"",null,null,0]
[null,"",null,null,0]
[null,"",null,null,0]
[null,"",null,null,0]
[null,"",null,null,0]
[null,"",null,null,0]
[null,"",null,null,0]
[null,"",null,null,0]
[null,"",null,null,0]
["إستلمت أنا الموقع أدناه البضاعة الموضحة أعلاه في عهدتى بصفة أمانة بحالة جيدة وأتعهد بتسليمها إلى جهة الوصول بحالتها "]
["وأقر تضامنى مع مالك السيارة  لتحمل أي مسئولية تقع على البضاعة من عجز أو تلف أو فقدان أو حوادث أو تأخير في تسليم"]
[" البضاعة المشحونة بالسيارة قيادتى مسئولية تامة وتوقيعى على هذا إقرار منى بذلك.",null,null,null,"إجمالي عدد البالتات المستلمة"]
[null,null,null,null,"خشب بلدى",{"$f":"SUM(C17:C29)","v":0}]
["إدارة المخازن","الأمن\nتم مراجعة الكميات والأصناف المنصرفة","إدارة الجودة",null,"مالك السيارة"]
[null,"          الإسم :","الإسم :",null,"إسم السائق"]
["التوقيع :","         التوقيع :","التوقيع :",null,"رقم السيارة"]
[null,"خاص بالعميل",null,null,"توقيع السائق"]
[null,"توقيع المستلم /",null,null,"يــعــتــمــد ،،،"]

{"sheet":"ديسمبر","index":12,"n_rows":38,"n_cols":16,"rows_kept":38,"cut":false,"hidden":false,"merged":[[37,4,37,5],[0,0,0,1],[0,4,0,5],[8,0,8,1],[9,2,9,5],[10,2,10,5],[11,2,11,3],[11,4,11,5],[31,4,31,5],[33,2,33,3]]}
[null,null,null,null,null,null,null,"انشاء فاتورة جديدة",null,"رقم البوليصة","تاريخ البوليصة","اسم الشركة","إجمالي البالتات","مالك السيارة","اسم السائق","رقم السيارة"]
[]
[]
[null,null,null,null,"التاريخ"]
[null,null,null,null,"رقم البوليصة",1]
[null,null,null,null,"رقم أمر التوريد"]
[null,null,null,null,"كود العميل"]
[]
["بيانات العميل"]
["شـركـة /",{"$f":"IF(F7>0,VLOOKUP(F7,cli,2,0),\"\")","v":""},"الرجاء إعادة البالتات الفارغة من الموقع"]
["الموقع /",{"$f":"IF(F7>0,VLOOKUP(F7,data,5,0),\"\")","v":""},"عدم إستكمال بيانات إستلام السائق من العميل يعنى عدم وجود بالتات مرتجع"]
["رقم الهاتف/",{"$f":"IF(F7>0,VLOOKUP(F7,data,4,0),\"\")","v":""},"إستلام السائق من العميل",null,"إستلام مخازن الشركة"]
[null,null,"عدد البالتات المرتجع","توقيع السائق","عدد البالتات المرتجع","توقيع المخازن"]
[]
[]
["كود المنتج","اسم المنتج","عدد البالتات","محتوى البالتة","إجمالي الكمية","ملاحظات &\n تاريخ الإنتاج"]
[null,{"$f":"IF(A17>0,VLOOKUP(A17,or,2,0),\"\")","v":""},null,null,{"$f":"C17*D17","v":0}]
[null,"",null,null,{"$f":"C18*D18","v":0}]
[null,"",null,null,0]
[null,"",null,null,0]
[null,"",null,null,0]
[null,"",null,null,0]
[null,"",null,null,0]
[null,"",null,null,0]
[null,"",null,null,0]
[null,"",null,null,0]
[null,"",null,null,0]
[null,"",null,null,0]
[null,"",null,null,0]
["إستلمت أنا الموقع أدناه البضاعة الموضحة أعلاه في عهدتى بصفة أمانة بحالة جيدة وأتعهد بتسليمها إلى جهة الوصول بحالتها "]
["وأقر تضامنى مع مالك السيارة  لتحمل أي مسئولية تقع على البضاعة من عجز أو تلف أو فقدان أو حوادث أو تأخير في تسليم"]
[" البضاعة المشحونة بالسيارة قيادتى مسئولية تامة وتوقيعى على هذا إقرار منى بذلك.",null,null,null,"إجمالي عدد البالتات المستلمة"]
[null,null,null,null,"خشب بلدى",{"$f":"SUM(C17:C29)","v":0}]
["إدارة المخازن","الأمن\nتم مراجعة الكميات والأصناف المنصرفة","إدارة الجودة",null,"مالك السيارة"]
[null,"          الإسم :","الإسم :",null,"إسم السائق"]
["التوقيع :","         التوقيع :","التوقيع :",null,"رقم السيارة"]
[null,"خاص بالعميل",null,null,"توقيع السائق"]
[null,"توقيع المستلم /",null,null,"يــعــتــمــد ،،،"]

{"sheet":"Pattern","index":13,"n_rows":38,"n_cols":8,"rows_kept":38,"cut":false,"hidden":false,"merged":[[42,0,42,1],[43,0,43,1],[44,0,44,1],[9,2,9,5],[33,2,33,3],[0,4,0,5],[8,0,8,1],[37,4,37,5],[0,0,0,1],[31,4,31,5],[11,2,11,3],[11,4,11,5],[10,2,10,5]]}
[]
[]
[]
[null,null,null,null,"التاريخ"]
[null,null,null,null,"رقم البوليصة",2]
[null,null,null,null,"رقم أمر التوريد"]
[null,null,null,null,"كود العميل"]
[]
["بيانات العميل"]
["شـركـة /",{"$f":"IF(F7>0,VLOOKUP(F7,cli,2,0),\"\")","v":""},"الرجاء إعادة البالتات الفارغة من الموقع"]
["الموقع /",{"$f":"IF(F7>0,VLOOKUP(F7,data,5,0),\"\")","v":""},"عدم إستكمال بيانات إستلام السائق من العميل يعنى عدم وجود بالتات مرتجع"]
["رقم الهاتف/",{"$f":"IF(F7>0,VLOOKUP(F7,data,4,0),\"\")","v":""},"إستلام السائق من العميل",null,"إستلام مخازن الشركة",null,null,{"$f":"+H16","v":0}]
[null,null,"عدد البالتات المرتجع","توقيع السائق","عدد البالتات المرتجع","توقيع المخازن"]
[]
[]
["كود المنتج","اسم المنتج","عدد البالتات","محتوى البالتة","إجمالي الكمية","ملاحظات &\n تاريخ الإنتاج"]
[null,{"$f":"IF(A17>0,VLOOKUP(A17,or,2,0),\"\")","v":""},null,null,{"$f":"C17*D17","v":0}]
[null,"",null,null,{"$f":"C18*D18","v":0}]
[null,"",null,null,0]
[null,"",null,null,0]
[null,"",null,null,0]
[null,"",null,null,0]
[null,"",null,null,0]
[null,"",null,null,0]
[null,"",null,null,0]
[null,"",null,null,0]
[null,"",null,null,0]
[null,"",null,null,0]
[null,"",null,null,0]
["إستلمت أنا الموقع أدناه البضاعة الموضحة أعلاه في عهدتى بصفة أمانة بحالة جيدة وأتعهد بتسليمها إلى جهة الوصول بحالتها "]
["وأقر تضامنى مع مالك السيارة  لتحمل أي مسئولية تقع على البضاعة من عجز أو تلف أو فقدان أو حوادث أو تأخير في تسليم"]
[" البضاعة المشحونة بالسيارة قيادتى مسئولية تامة وتوقيعى على هذا إقرار منى بذلك.",null,null,null,"إجمالي عدد البالتات المستلمة"]
[null,null,null,null,"خشب بلدى",{"$f":"SUM(C17:C29)","v":0}]
["إدارة المخازن","الأمن\nتم مراجعة الكميات والأصناف المنصرفة","إدارة الجودة",null,"مالك السيارة"]
[null,"          الإسم :","الإسم :",null,"إسم السائق"]
["التوقيع :","         التوقيع :","التوقيع :",null,"رقم السيارة"]
[null,"خاص بالعميل",null,null,"توقيع السائق"]
[null,"توقيع المستلم /",null,null,"يــعــتــمــد ،،،"]

{"sheet":"f","index":14,"n_rows":38,"n_cols":16,"rows_kept":38,"cut":false,"hidden":false,"merged":[[35,4,35,5],[37,4,37,5],[0,0,0,1],[0,4,0,5],[8,0,8,1],[32,4,32,5],[33,0,33,1],[34,0,34,1],[35,0,35,1],[36,4,36,5]]}
[null,null,null,null,null,null,null,"انشاء فاتورة جديدة",null,"رقم البوليصة","تاريخ البوليصة","اسم الشركة","إجمالي البالتات","مالك السيارة","اسم السائق","رقم السيارة"]
[null,null,null,null,null,null,null,null,null,"-",{"$f":"$F$4","v":"00:00:00"},{"$f":"$B$10","v":""},{"$f":"$E$33","v":0},{"$f":"$F$34","v":0},{"$f":"$F$35","v":0},{"$f":"$E$36","v":0}]
[]
[null,null,null,null,"التاريخ"]
[null,null,null,null,"رقم البوليصة"]
[null,null,null,null,"رقم أمر التوريد"]
[null,null,null,null,"كود العميل"]
[]
["بيانات العميل"]
["شـركـة /",{"$f":"IF(F7>0,VLOOKUP(F7,cli,2,0),\"\")","v":""}]
["الموقع /",{"$f":"IF(F7>0,VLOOKUP(F7,data,5,0),\"\")","v":""}]
[]
[]
[]
[]
["كود المنتج","اسم المنتج","عدد البالتات","محتوى البالتة","إجمالي الكمية","ملاحظات"]
[null,{"$f":"IF(A17>0,VLOOKUP(A17,or,2,0),\"\")","v":""},null,null,{"$f":"C17*D17","v":0}]
[null,"",null,null,{"$f":"C18*D18","v":0}]
[null,"",null,null,0]
[null,"",null,null,0]
[null,"",null,null,0]
[null,"",null,null,0]
[null,"",null,null,0]
[null,"",null,null,0]
[null,"",null,null,0]
[null,"",null,null,0]
[null,"",null,null,0]
[null,"",null,null,0]
[null,"",null,null,0]
["إستلمت أنا الموقع أدناه البضاعة الموضحة أعلاه في عهدتى بصفة أمانة بحالة جيدة وأتعهد بتسليمها إلى جهة الوصول بحالتها "]
["وأقر تضامنى مع مالك السيارة  لتحمل أي مسئولية تقع على البضاعة من عجز أو تلف أو فقدان أو حوادث أو تأخير في تسليم"]
[" البضاعة المشحونة بالسيارة قيادتى مسئولية تامة وتوقيعى على هذا إقرار منى بذلك"]
[null,null,"إجمالي عدد البالتات المستلمة",null,{"$f":"SUM(C17:C29)","v":0}]
["خاص بالعميل",null,null,"مالك السيارة"]
["تاريخ الإستلام /",null,null,"إسم السائق"]
["توقيع المستلم /",null,null,"رقم السيارة"]
[null,null,null,"التوقيع"]
[null,"إدارة المخازن                                                             إدارة الجودة",null,null,"يعتمد"]